bitfinex-derivatives/quotes_BTCF0:USTF0_20220103
["timestamp","ask_amount","ask_price","bid_price","bid_amount"]
[1641217514118,0.35500156,47253.0,47252.0,0.44641752]
[1641217514319,0.38100156,47253.0,47252.0,0.63841752]
[1641217514819,0.38100156,47253.0,47252.0,0.63741752]
[1641217515219,0.026,47253.0,47252.0,0.63741752]
[1641217515620,0.35500156,47254.0,47252.0,0.44541752]
[1641217515819,0.35500156,47254.0,47252.0,0.44441752]
[1641217516220,0.35500156,47254.0,47252.0,0.02116181]
[1641217516421,0.53000156,47254.0,47252.0,0.19816181]
[1641217517422,0.175,47254.0,47252.0,0.19816181]
[1641217517621,1.41992813,47255.0,47252.0,0.02116181]
[1641217517820,0.59166926,47253.0,47252.0,0.02116181]
[1641217518421,0.59166926,47253.0,47252.0,0.20516181]
[1641217518422,0.77066926,47253.0,47252.0,0.20516181]
[1641217519420,0.179,47253.0,47252.0,0.20516181]
[1641217519621,0.28978791,47253.0,47252.0,0.20516181]
[1641217520222,0.28978791,47253.0,47252.0,0.02116181]
[1641217520420,0.27978791,47253.0,47252.0,0.20616181]
[1641217521625,0.11078791,47253.0,47252.0,0.02116181]
[1641217521820,0.11078791,47253.0,47252.0,0.02216181]
[1641217522222,0.11078791,47253.0,47252.0,0.02116181]
[1641217522423,0.168,47253.0,47252.0,0.20816181]
[1641217522822,0.168,47253.0,47252.0,0.20716181]
[1641217523227,0.168,47253.0,47252.0,0.20816181]
[1641217523228,0.27878791,47253.0,47252.0,0.20816181]
[1641217523622,0.27878791,47253.0,47252.0,0.02216181]
[1641217523822,0.11078791,47253.0,47252.0,0.02216181]
[1641217524223,1.29476629,47253.0,47252.0,0.02216181]
[1641217524423,1.29476629,47253.0,47252.0,0.21516181]
[1641217525028,1.18397838,47254.0,47252.0,0.21416181]
[1641217525626,0.11078791,47253.0,47252.0,0.02116181]
[1641217525926,0.11078791,47253.0,47252.0,0.17265838]
[1641217526327,1.18397838,47254.0,47252.0,0.36465838]
[1641217526829,1.18397838,47254.0,47253.0,0.001]
[1641217527729,1.18397838,47254.0,47252.0,0.17265838]
[1641217527930,1.18397838,47254.0,47253.0,0.001]
[1641217528429,1.18397838,47254.0,47253.0,0.192]
[1641217528629,1.18397838,47254.0,47253.0,0.191]
[1641217529450,0.11078791,47258.0,47253.0,0.191]
[1641217529650,0.11078791,47258.0,47252.0,0.17265838]
[1641217529948,0.29078791,47258.0,47252.0,0.17265838]
[1641217530347,0.47078791,47258.0,47252.0,0.35265838]
[1641217531352,0.11078791,47257.0,47252.0,0.35265838]
[1641217531550,0.11078791,47257.0,47252.0,0.20116181]
[1641217531751,0.11078791,47257.0,47252.0,0.02116181]
[1641217532350,0.30578791,47257.0,47252.0,0.02116181]
[1641217532753,1.7266392,47257.0,47252.0,0.02116181]
[1641217533352,0.11078791,47256.0,47252.0,0.02116181]
[1641217534451,0.30678791,47256.0,47252.0,0.02116181]
[1641217535553,0.11078791,47255.0,47252.0,0.02116181]
[1641217536053,0.18,47254.0,47246.0,0.14033567]
[1641217536254,0.11078791,47255.0,47248.0,0.02116513]
[1641217536557,0.29678791,47255.0,47252.0,0.1]
[1641217537353,0.11078791,47253.0,47252.0,0.1]
[1641217537652,0.11078791,47253.0,47248.0,0.02116513]
[1641217537855,0.18,47256.0,47248.0,0.02116513]
[1641217537856,0.11078791,47254.0,47248.0,0.02116513]
[1641217538554,0.162,47253.0,47248.0,0.18616513]
[1641217539354,0.11078791,47252.0,47248.0,0.18616513]
[1641217539756,0.11078791,47252.0,47248.0,0.02116513]
[1641217540359,0.28078791,47252.0,47248.0,0.19416513]
[1641217540960,0.11078791,47251.0,47248.0,0.19416513]
[1641217542459,0.20978791,47251.0,47248.0,0.37616513]
[1641217543263,0.11078791,47250.0,47248.0,0.37616513]
[1641217543762,0.11078791,47250.0,47248.0,0.02116513]
[1641217544162,0.18,47256.0,47249.0,0.001]
[1641217544362,0.08,47250.0,47248.0,0.20616513]
[1641217544563,0.08,47250.0,47249.0,0.001]
[1641217544964,0.08,47250.0,47248.0,0.20616513]
[1641217546363,0.081,47250.0,47248.0,0.20716513]
[1641217546564,0.081,47250.0,47249.0,0.95590089]
[1641217546864,0.081,47250.0,47249.0,0.95690089]
[1641217547664,0.081,47250.0,47249.0,0.95590089]
[1641217547966,1.42085129,47256.0,47249.0,0.95690089]
[1641217548164,1.42085129,47256.0,47249.0,0.95590089]
[1641217548364,1.42085129,47256.0,47249.0,0.84060741]
[1641217548565,0.085,47250.0,47249.0,1.02960741]
[1641217549064,0.085,47250.0,47249.0,1.16441464]
[1641217549465,0.085,47250.0,47249.0,1.05177076]
[1641217549866,1.42085129,47257.0,47249.0,0.86277076]
[1641217550066,1.42085129,47257.0,47256.0,0.001]
[1641217550266,1.42085129,47257.0,47249.0,0.86177076]
[1641217550468,1.60385129,47257.0,47256.0,0.001]
[1641217550666,1.60385129,47257.0,47249.0,1.01877076]
[1641217550667,0.11078791,47256.0,47251.0,0.84060741]
[1641217550867,0.11078791,47256.0,47255.0,0.001]
[1641217551266,0.11078791,47256.0,47251.0,0.84060741]
[1641217551566,0.11078791,47256.0,47255.0,0.001]
[1641217552168,0.11078791,47256.0,47251.0,0.84060741]
[1641217552367,0.11078791,47256.0,47255.0,0.14133567]
[1641217552569,0.11078791,47256.0,47255.0,0.31533567]
[1641217552768,1.42085129,47258.0,47255.0,0.33649573]
[1641217552970,1.42085129,47258.0,47257.0,0.001]
[1641217553570,1.42085129,47259.0,47257.0,0.001]
[1641217553770,1.42085129,47259.0,47258.0,0.001]
[1641217554571,1.42085129,47259.0,47258.0,0.127]
[1641217554972,1.42085129,47259.0,47258.0,0.126]
[1641217555372,1.42085129,47260.0,47258.0,0.126]
[1641217555774,1.42085129,47260.0,47255.0,0.16149573]
[1641217555974,1.42085129,47259.0,47255.0,0.16149573]
[1641217557175,1.42085129,47259.0,47258.0,0.001]
[1641217557975,1.42085129,47259.0,47255.0,0.16149573]
[1641217558178,1.42085129,47259.0,47258.0,0.001]
[1641217558675,1.42085129,47259.0,47255.0,0.16149573]
[1641217558875,1.42085129,47259.0,47258.0,0.001]
[1641217559076,1.60085129,47259.0,47258.0,0.001]
[1641217559278,1.42085129,47259.0,47258.0,0.001]
[1641217560078,1.42085129,47259.0,47255.0,0.16149573]
[1641217560277,1.42085129,47259.0,47258.0,0.001]
[1641217560684,1.42085129,47259.0,47255.0,0.16149573]
[1641217560880,1.42085129,47259.0,47258.0,0.001]
[1641217563382,1.42085129,47259.0,47255.0,0.16149573]
[1641217563582,1.42085129,47259.0,47258.0,0.0211594]
[1641217563783,1.42085129,47259.0,47258.0,0.0221594]
[1641217564491,1.42085129,47261.0,47258.0,0.0221594]
[1641217564685,1.42085129,47261.0,47260.0,0.001]
[1641217564886,1.42085129,47261.0,47258.0,0.0211594]
[1641217566388,0.18,47260.0,47258.0,0.0211594]
[1641217566590,0.26623,47260.0,47258.0,0.0211594]
[1641217566989,0.26623,47260.0,47259.0,0.001]
[1641217567390,1.68708129,47260.0,47259.0,0.001]
[1641217568190,1.50708129,47260.0,47259.0,0.001]
[1641217568591,1.68708129,47260.0,47259.0,0.001]
[1641217568991,1.50708129,47260.0,47258.0,0.0211594]
[1641217569191,1.8031541,47260.0,47258.0,0.0211594]
[1641217569392,1.8031541,47260.0,47259.0,0.001]
[1641217569592,1.68708129,47260.0,47259.0,0.001]
[1641217569992,1.50708129,47260.0,47258.0,0.0211594]
[1641217570192,1.6231541,47260.0,47258.0,0.0211594]
[1641217570393,1.8031541,47260.0,47259.0,0.001]
[1641217570592,1.8031541,47260.0,47258.0,0.0211594]
[1641217571004,1.6231541,47260.0,47258.0,0.0211594]
[1641217571204,1.68708129,47260.0,47259.0,0.001]
[1641217571402,1.50708129,47260.0,47259.0,0.001]
[1641217571602,1.68708129,47260.0,47259.0,0.001]
[1641217571803,1.50708129,47260.0,47259.0,0.001]
[1641217572805,1.68708129,47260.0,47259.0,0.001]
[1641217573106,1.50708129,47260.0,47259.0,0.001]
[1641217573305,1.68708129,47260.0,47259.0,0.001]
[1641217574305,1.68708129,47260.0,47258.0,0.0211594]
[1641217574506,1.50708129,47260.0,47259.0,0.001]
[1641217574707,1.50708129,47260.0,47259.0,0.010794]
[1641217574906,1.50708129,47260.0,47259.0,0.009794]
[1641217575307,0.08623,47260.0,47259.0,0.009794]
[1641217575507,1.42085129,47261.0,47259.0,0.009794]
[1641217575706,1.42085129,47261.0,47260.0,0.001]
[1641217576309,1.42085129,47262.0,47260.0,0.001]
[1641217576508,1.42085129,47262.0,47261.0,0.001]
[1641217576807,1.42085129,47262.0,47261.0,0.002]
[1641217577107,1.42085129,47262.0,47261.0,0.001]
[1641217577509,1.42085129,47262.0,47261.0,0.002]
[1641217577809,1.42085129,47262.0,47261.0,0.001]
[1641217578209,1.42085129,47262.0,47261.0,0.002]
[1641217578409,1.42085129,47262.0,47261.0,0.174]
[1641217578809,1.42085129,47263.0,47261.0,0.174]
[1641217579011,1.42085129,47263.0,47262.0,0.001]
[1641217580510,1.42085129,47263.0,47262.0,0.158]
[1641217582313,1.42085129,47263.0,47262.0,0.001]
[1641217582513,1.42085129,47263.0,47262.0,0.04]
[1641217582916,1.18532089,47263.0,47262.0,0.04]
[1641217583314,1.18532089,47263.0,47262.0,0.039]
[1641217583515,1.18532089,47263.0,47262.0,0.04]
[1641217583718,1.18532089,47263.0,47259.0,0.009794]
[1641217583916,1.18532089,47263.0,47262.0,0.001]
[1641217584517,1.18532089,47263.0,47262.0,0.168]
[1641217584919,1.18532089,47263.0,47262.0,0.167]
[1641217585121,0.82943916,47263.0,47262.0,0.167]
[1641217585718,0.82943916,47263.0,47262.0,0.42317269]
[1641217585920,1.18532089,47264.0,47262.0,0.42317269]
[1641217586420,1.18532089,47264.0,47262.0,0.60917269]
[1641217586622,0.94109108,47263.0,47262.0,0.60917269]
[1641217587121,0.94109108,47263.0,47262.0,0.61017269]
[1641217587321,0.11162766,47264.0,47262.0,0.61017269]
[1641217587524,0.11162766,47264.0,47263.0,0.001]
[1641217587922,0.11162766,47264.0,47262.0,0.42317269]
[1641217588123,0.11162766,47264.0,47263.0,0.001]
[1641217589925,0.11162766,47264.0,47263.0,0.02215796]
[1641217590526,0.11162766,47264.0,47263.0,0.20815796]
[1641217590725,1.29694855,47264.0,47263.0,0.20815796]
[1641217590925,1.29694855,47264.0,47263.0,0.20915796]
[1641217591927,1.29694855,47264.0,47263.0,0.02215796]
[1641217592128,0.11162766,47264.0,47263.0,0.02215796]
[1641217592528,0.11162766,47264.0,47263.0,0.20815796]
[1641217592831,1.42085129,47265.0,47263.0,0.20815796]
[1641217593029,0.11162766,47268.0,47263.0,0.20815796]
[1641217593030,0.11162766,47268.0,47263.0,0.186]
[1641217593230,1.53856506,47272.0,47267.0,0.42412627]
[1641217593431,1.53856506,47272.0,47267.0,0.42312627]
[1641217593631,3.85080923,47273.0,47271.0,0.001]
[1641217593834,3.85080923,47273.0,47270.0,0.009794]
[1641217594232,3.85080923,47273.0,47272.0,0.001]
[1641217594934,0.18,47276.0,47270.0,0.33812967]
[1641217595933,0.18,47276.0,47270.0,0.15012967]
[1641217596535,0.18,47276.0,47270.0,0.30112967]
[1641217597843,1.53856506,47278.0,47273.0,0.42307312]
[1641217598542,0.14033567,47280.0,47273.0,0.54607312]
[1641217598543,1.42505893,47274.0,47273.0,0.54607312]
[1641217598738,1.42505893,47274.0,47273.0,0.54707312]
[1641217598939,1.42505893,47274.0,47273.0,0.54607312]
[1641217599341,1.42505893,47275.0,47273.0,0.54607312]
[1641217599740,1.42505893,47275.0,47274.0,0.001]
[1641217600540,1.42505893,47275.0,47274.0,0.18]
[1641217600740,1.42505893,47275.0,47274.0,0.181]
[1641217601140,0.14033567,47280.0,47274.0,0.181]
[1641217601543,0.14033567,47280.0,47274.0,0.18]
[1641217601840,0.14033567,47280.0,47273.0,0.51636312]
[1641217602742,1.42751499,47275.0,47273.0,0.51636312]
[1641217602943,1.42751499,47275.0,47274.0,0.001]
[1641217603643,1.42751499,47275.0,47273.0,0.51636312]
[1641217603843,1.42751499,47275.0,47274.0,0.001]
[1641217604244,1.42751499,47275.0,47273.0,0.51636312]
[1641217604465,1.42751499,47275.0,47274.0,0.182]
[1641217604663,1.42751499,47275.0,47274.0,0.183]
[1641217605066,1.42751499,47275.0,47274.0,0.182]
[1641217605861,1.42751499,47275.0,47272.0,0.02115417]
[1641217606162,1.49650499,47275.0,47272.0,0.02115417]
[1641217606563,0.24899,47275.0,47272.0,0.12515417]
[1641217607662,0.18,47275.0,47272.0,0.12515417]
[1641217607862,1.67890073,47280.0,47272.0,0.02115417]
[1641217607863,1.53856506,47280.0,47272.0,0.02115417]
[1641217608062,1.42573708,47273.0,47272.0,0.02115417]
[1641217608665,1.53856506,47279.0,47272.0,0.02115417]
[1641217609266,1.64376934,47279.0,47272.0,0.02115417]
[1641217610468,1.5290732,47279.0,47272.0,0.02115417]
[1641217610669,1.7220732,47279.0,47272.0,0.02115417]
[1641217611271,0.18,47277.0,47272.0,0.02115417]
[1641217611476,1.18699827,47273.0,47272.0,0.02115417]
[1641217611867,1.18699827,47273.0,47272.0,0.02215417]
[1641217612268,1.18699827,47273.0,47272.0,0.02115417]
[1641217612469,1.34799827,47273.0,47272.0,0.20115417]
[1641217612870,1.34799827,47273.0,47272.0,0.20215417]
[1641217613071,0.26620428,47273.0,47272.0,0.20115417]
[1641217613269,0.26620428,47273.0,47272.0,0.32222096]
[1641217613870,0.10520428,47273.0,47272.0,0.14222096]
[1641217614271,0.10520428,47273.0,47272.0,0.14122096]
[1641217614471,0.28020428,47273.0,47272.0,0.31522096]
[1641217614872,0.28020428,47273.0,47272.0,0.31422096]
[1641217615879,0.10520428,47273.0,47272.0,0.14122096]
[1641217616471,0.28020428,47273.0,47272.0,0.18415417]
[1641217616974,1.36199827,47273.0,47272.0,0.18415417]
[1641217617572,1.46720255,47273.0,47272.0,0.18415417]
[1641217617972,1.29220255,47273.0,47272.0,0.02115417]
[1641217618371,1.29220255,47273.0,47272.0,0.14122263]
[1641217618573,1.46620255,47273.0,47272.0,0.30922263]
[1641217618774,1.46620255,47273.0,47270.0,0.14033567]
[1641217618775,1.53353255,47273.0,47270.0,0.14033567]
[1641217618972,0.18,47271.0,47264.0,0.22629548]
[1641217619175,0.18,47271.0,47260.0,0.84060741]
[1641217619373,0.32033567,47271.0,47260.0,0.84060741]
[1641217619776,0.14033567,47271.0,47265.0,0.02115696]
[1641217620374,0.18,47269.0,47265.0,0.02115696]
[1641217620776,0.32633567,47271.0,47265.0,0.02115696]
[1641217620975,0.18,47269.0,47265.0,0.02115696]
[1641217621575,1.18574885,47267.0,47265.0,0.02115696]
[1641217622577,1.37274885,47267.0,47258.0,0.009794]
[1641217622778,1.37274885,47267.0,47260.0,0.02115918]
[1641217622979,1.12234589,47267.0,47260.0,0.02115918]
[1641217623178,1.12234589,47267.0,47266.0,0.001]
[1641217623378,1.12234589,47267.0,47266.0,0.002]
[1641217623778,0.93534589,47267.0,47266.0,0.001]
[1641217623978,0.83014161,47267.0,47266.0,0.001]
[1641217624587,1.02214161,47267.0,47266.0,0.001]
[1641217624789,1.02214161,47267.0,47265.0,0.17615171]
[1641217624981,1.02214161,47267.0,47265.0,0.02115717]
[1641217625380,1.02214161,47267.0,47261.0,0.14033567]
[1641217625781,0.83014161,47267.0,47261.0,0.14033567]
[1641217625981,1.46869721,47270.0,47261.0,0.14033567]
[1641217626182,0.10294836,47266.0,47261.0,0.14033567]
[1641217626883,0.10294836,47266.0,47265.0,0.001]
[1641217627082,0.83028001,47263.0,47261.0,0.14033567]
[1641217627283,0.83028001,47263.0,47262.0,0.002]
[1641217627682,0.83028001,47263.0,47262.0,0.001]
[1641217627883,0.83028001,47263.0,47262.0,0.002]
[1641217628583,1.01828001,47263.0,47262.0,0.002]
[1641217629383,0.188,47263.0,47262.0,0.002]
[1641217629586,0.29094836,47263.0,47262.0,0.002]
[1641217629785,0.10294836,47263.0,47262.0,0.002]
[1641217630584,0.29094836,47263.0,47262.0,0.001]
[1641217631386,1.01870026,47263.0,47262.0,0.001]
[1641217631995,0.10294836,47263.0,47262.0,0.001]
[1641217632585,0.29094836,47263.0,47262.0,0.001]
[1641217632785,0.29094836,47263.0,47262.0,0.002]
[1641217633287,0.188,47263.0,47262.0,0.002]
[1641217633687,0.188,47263.0,47262.0,0.001]
[1641217633886,1.18574885,47264.0,47262.0,0.001]
[1641217634089,1.18574885,47265.0,47263.0,0.001]
[1641217634294,1.18574885,47265.0,47264.0,0.002]
[1641217635089,1.18574885,47265.0,47264.0,0.001]
[1641217635293,0.18,47270.0,47264.0,0.001]
[1641217635489,0.18,47270.0,47261.0,0.14033567]
[1641217636190,1.56420459,47271.0,47261.0,0.14033567]
[1641217636491,0.188,47270.0,47261.0,0.14033567]
[1641217637594,0.18,47269.0,47261.0,0.14033567]
[1641217637793,0.188,47270.0,47261.0,0.14033567]
[1641217637991,0.14033567,47271.0,47261.0,0.14033567]
[1641217638191,0.18,47269.0,47261.0,0.14033567]
[1641217638394,0.14033567,47271.0,47261.0,0.14033567]
[1641217638594,1.75220459,47271.0,47261.0,0.14033567]
[1641217639091,1.42386892,47270.0,47261.0,0.14033567]
[1641217640196,1.56420459,47271.0,47261.0,0.14033567]
[1641217640494,0.188,47270.0,47261.0,0.14033567]
[1641217640694,0.18,47269.0,47261.0,0.14033567]
[1641217641297,1.61186892,47270.0,47262.0,0.38327714]
[1641217641496,0.18,47269.0,47262.0,0.38327714]
[1641217641994,0.18,47269.0,47262.0,0.4231665]
[1641217642194,1.42386892,47270.0,47262.0,0.4231665]
[1641217642399,1.42386892,47270.0,47263.0,0.12008062]
[1641217642595,0.188,47269.0,47263.0,0.12008062]
[1641217643898,0.18,47270.0,47263.0,0.12008062]
[1641217644098,1.56420459,47271.0,47263.0,0.12008062]
[1641217644601,0.188,47270.0,47263.0,0.12008062]
[1641217644800,0.368,47270.0,47263.0,0.12008062]
[1641217645814,0.18,47270.0,47263.0,0.12008062]
[1641217646414,1.60386892,47270.0,47263.0,0.12008062]
[1641217646615,1.79186892,47270.0,47263.0,0.12008062]
[1641217647818,1.42386892,47270.0,47263.0,0.12008062]
[1641217648019,0.18,47266.0,47258.0,0.42320856]
[1641217648217,0.18,47266.0,47256.0,0.84060741]
[1641217648218,0.18,47260.0,47256.0,0.84060741]
[1641217648417,0.18,47260.0,47259.0,0.001]
[1641217648816,0.18,47260.0,47252.0,1.1987263]
[1641217648817,0.181,47260.0,47252.0,1.1987263]
[1641217649017,0.2565,47266.0,47229.0,4.2913625]
[1641217649018,0.18,47253.0,47229.0,4.2913625]
[1641217649218,0.18,47253.0,47229.0,0.4234625]
[1641217649219,0.18,47246.0,47229.0,0.4234625]
[1641217649521,0.18,47246.0,47245.0,1.22284342]
[1641217649719,0.46067134,47246.0,47228.0,0.14033567]
[1641217649919,0.18,47239.0,47228.0,0.33256435]
[1641217650119,0.18,47239.0,47233.0,1.56152728]
[1641217650120,0.25207,47239.0,47233.0,1.56152728]
[1641217650528,0.43607,47239.0,47233.0,1.56152728]
[1641217651528,0.10472777,47238.0,47233.0,1.56152728]
[1641217651729,0.18,47235.0,47228.0,0.16150921]
[1641217652423,0.35412302,47230.0,47229.0,0.01201499]
[1641217653223,0.35412302,47231.0,47229.0,0.01201499]
[1641217654727,0.53912302,47231.0,47229.0,0.01201499]
[1641217655827,0.10472777,47230.0,47229.0,0.01201499]
[1641217656027,1.41751518,47239.0,47229.0,0.19201499]
[1641217656227,1.41751518,47239.0,47230.0,0.009794]
[1641217656427,1.41751518,47239.0,47230.0,0.14194759]
[1641217656628,1.60351518,47239.0,47231.0,0.318532]
[1641217656827,0.186,47239.0,47231.0,0.45068559]
[1641217657230,0.186,47239.0,47236.0,0.001]
[1641217657428,0.186,47239.0,47238.0,0.001]
[1641217657830,0.28067134,47246.0,47238.0,0.001]
[1641217658030,0.28067134,47246.0,47237.0,0.14033567]
[1641217658230,0.28067134,47246.0,47238.0,0.3692427]
[1641217658628,0.46667134,47246.0,47238.0,0.3692427]
[1641217658828,0.46667134,47246.0,47240.0,0.02116796]
[1641217659930,0.28067134,47246.0,47240.0,0.02116796]
[1641217660533,0.46767134,47246.0,47240.0,0.02116796]
[1641217662033,0.28067134,47246.0,47240.0,0.02116796]
[1641217662635,0.46767134,47246.0,47240.0,0.02116796]
[1641217663943,0.28067134,47246.0,47240.0,0.02116796]
[1641217664747,0.46767134,47246.0,47238.0,0.3692427]
[1641217665441,0.46767134,47246.0,47237.0,0.14033567]
[1641217665840,0.28067134,47246.0,47237.0,0.14033567]
[1641217666639,0.46667134,47246.0,47237.0,0.14033567]
[1641217666941,0.46667134,47246.0,47238.0,0.12013367]
[1641217667140,0.46667134,47246.0,47239.0,0.02116858]
[1641217667341,0.46667134,47246.0,47239.0,0.08467537]
[1641217667841,0.35299769,47251.0,47245.0,0.14033567]
[1641217668149,0.35299769,47253.0,47245.0,0.14033567]
[1641217668742,0.189,47251.0,47245.0,0.14033567]
[1641217669943,0.35299769,47254.0,47245.0,0.14033567]
[1641217670143,0.35299769,47255.0,47245.0,0.14033567]
[1641217670849,0.53999769,47255.0,47245.0,0.14033567]
[1641217671845,0.35299769,47255.0,47245.0,0.14033567]
[1641217672448,0.14033567,47257.0,47245.0,0.14033567]
[1641217672647,1.41751518,47246.0,47245.0,0.14033567]
[1641217673450,1.53856506,47253.0,47245.0,0.14033567]
[1641217673650,1.53856506,47252.0,47245.0,0.14033567]
[1641217674652,1.72456506,47252.0,47245.0,0.14033567]
[1641217675251,0.1369849,47251.0,47245.0,0.14033567]
[1641217676652,0.3229849,47251.0,47245.0,0.14033567]
[1641217677452,0.186,47251.0,47245.0,0.14033567]
[1641217677854,0.1369849,47250.0,47245.0,0.14033567]
[1641217678655,0.3229849,47250.0,47245.0,0.14033567]
[1641217679473,0.3229849,47250.0,47246.0,0.009794]
[1641217679670,0.3229849,47250.0,47249.0,0.02116389]
[1641217680072,1.41819213,47256.0,47249.0,0.02116389]
[1641217680271,1.41819213,47256.0,47249.0,0.18]
[1641217680472,1.41819213,47256.0,47254.0,0.0211619]
[1641217680673,1.60219213,47256.0,47254.0,0.0211619]
[1641217681275,1.53819213,47256.0,47254.0,0.0211619]
[1641217681475,0.184,47256.0,47254.0,0.20915042]
[1641217682081,0.14033567,47257.0,47254.0,0.20915042]
[1641217682474,0.14033567,47257.0,47254.0,0.0211619]
[1641217682676,0.32233567,47257.0,47254.0,0.0211619]
[1641217683978,0.14033567,47257.0,47254.0,0.0211619]
[1641217684778,0.32533567,47257.0,47254.0,0.0211619]
[1641217685978,0.14033567,47257.0,47254.0,0.0211619]
[1641217686679,0.32333567,47257.0,47254.0,0.0211619]
[1641217686879,0.32333567,47257.0,47252.0,0.009794]
[1641217687080,0.32333567,47257.0,47254.0,0.02116185]
[1641217688582,0.14033567,47257.0,47254.0,0.02116185]
[1641217688782,0.32733567,47257.0,47254.0,0.02116185]
[1641217688982,0.32733567,47257.0,47252.0,0.009794]
[1641217689182,0.18,47256.0,47249.0,0.02116385]
[1641217689583,0.32733567,47257.0,47249.0,0.02116385]
[1641217689783,0.50733567,47257.0,47249.0,0.02116385]
[1641217689984,0.32033567,47257.0,47249.0,0.02116385]
[1641217690684,0.50533567,47257.0,47249.0,0.02116385]
[1641217690884,0.32533567,47257.0,47249.0,0.02116385]
[1641217691085,0.50533567,47257.0,47249.0,0.02116385]
[1641217691985,0.32033567,47257.0,47249.0,0.02116385]
[1641217692787,0.50633567,47257.0,47249.0,0.02116385]
[1641217694090,0.32033567,47257.0,47249.0,0.02116385]
[1641217694689,0.50533567,47257.0,47245.0,0.14033567]
[1641217694988,0.18,47254.0,47245.0,0.14033567]
[1641217695189,0.18,47246.0,47239.0,0.02116829]
[1641217695790,0.0631,47254.0,47233.0,0.29394757]
[1641217695991,0.18,47253.0,47233.0,0.29394757]
[1641217696194,0.18,47247.0,47237.0,0.14033567]
[1641217696494,0.14033567,47248.0,47237.0,0.14033567]
[1641217696695,0.3556936,47240.0,47238.0,0.1201362]
[1641217696893,0.4206436,47240.0,47238.0,0.1201362]
[1641217697294,0.4206436,47240.0,47239.0,0.02116796]
[1641217697694,0.4206436,47240.0,47239.0,0.14130416]
[1641217698393,0.4206436,47240.0,47239.0,0.02116796]
[1641217698800,0.6076436,47240.0,47239.0,0.02116796]
[1641217700199,0.4206436,47240.0,47239.0,0.02116796]
[1641217700397,0.06495,47240.0,47239.0,0.02116796]
[1641217700695,0.25195,47240.0,47239.0,0.02116796]
[1641217701807,0.38589565,47240.0,47239.0,0.14128257]
[1641217701997,0.38589565,47240.0,47239.0,0.02116796]
[1641217702199,0.19889565,47240.0,47239.0,0.02116796]
[1641217702400,0.19889565,47240.0,47239.0,0.14128257]
[1641217702807,0.38189565,47240.0,47239.0,0.14128257]
[1641217704101,0.19889565,47240.0,47239.0,0.14128257]
[1641217704503,0.19889565,47240.0,47239.0,0.12011461]
[1641217704905,0.38289565,47240.0,47238.0,0.12011461]
[1641217705306,1.56977714,47240.0,47238.0,0.12011461]
[1641217706535,1.38577714,47240.0,47238.0,0.12011461]
[1641217706735,0.13394565,47239.0,47238.0,0.12011461]
[1641217708737,0.31694565,47239.0,47238.0,0.12011461]
[1641217710151,0.13394565,47239.0,47238.0,0.12011461]
[1641217710843,0.31794565,47239.0,47238.0,0.12011461]
[1641217712147,0.13394565,47239.0,47238.0,0.12011461]
[1641217712746,0.31694565,47239.0,47238.0,0.12011461]
[1641217714146,0.13394565,47239.0,47238.0,0.12011461]
[1641217714848,0.31694565,47239.0,47238.0,0.12011461]
[1641217716151,0.96495385,47239.0,47238.0,0.12011461]
[1641217716752,1.14595385,47239.0,47238.0,0.12011461]
[1641217718153,0.96495385,47239.0,47238.0,0.12011461]
[1641217718452,0.13394565,47239.0,47238.0,0.12011461]
[1641217718853,0.31694565,47239.0,47238.0,0.12011461]
[1641217720054,0.13394565,47239.0,47238.0,0.12011461]
[1641217720857,0.31594565,47239.0,47238.0,0.12011461]
[1641217722159,0.13394565,47239.0,47238.0,0.12011461]
[1641217722957,0.31694565,47239.0,47238.0,0.12011461]
[1641217724158,0.13394565,47239.0,47238.0,0.12011461]
[1641217724858,0.31794565,47239.0,47238.0,0.12011461]
[1641217725459,0.31794565,47239.0,47234.0,0.12011461]
[1641217725660,0.31794565,47239.0,47238.0,0.12011461]
[1641217725959,0.31794565,47239.0,47234.0,0.12011461]
[1641217726161,0.13394565,47239.0,47234.0,0.12011461]
[1641217726858,0.31694565,47239.0,47234.0,0.12011461]
[1641217727060,0.31694565,47239.0,47234.0,1.22811461]
[1641217727263,1.42025045,47240.0,47238.0,0.02116824]
[1641217727660,1.42025045,47243.0,47238.0,0.02116824]
[1641217728059,1.42025045,47243.0,47239.0,0.12011874]
[1641217728760,0.18,47246.0,47239.0,0.12011874]
[1641217728960,0.178,47243.0,47239.0,0.182]
[1641217730261,0.06174,47244.0,47238.0,0.02116824]
[1641217730662,0.06174,47244.0,47239.0,0.12011818]
[1641217730863,0.25274,47244.0,47239.0,0.12011818]
[1641217732265,0.06174,47244.0,47239.0,0.12011818]
[1641217732464,0.18,47241.0,47239.0,0.12011818]
[1641217732663,0.06174,47244.0,47239.0,0.12011818]
[1641217732865,0.18,47241.0,47234.0,0.12011818]
[1641217733064,0.18,47241.0,47233.0,0.16150687]
[1641217733663,0.25074,47244.0,47234.0,0.12012181]
[1641217734063,0.06174,47244.0,47234.0,0.12012181]
[1641217734264,0.8304862,47235.0,47234.0,0.12012181]
[1641217734668,0.8304862,47235.0,47234.0,0.54354479]
[1641217734868,0.8304862,47235.0,47234.0,0.73254479]
[1641217735067,0.8304862,47235.0,47234.0,0.74455649]
[1641217735466,0.8304862,47236.0,47234.0,0.74455649]
[1641217735870,0.8304862,47236.0,47235.0,0.13213351]
[1641217736367,0.8304862,47238.0,47235.0,0.13213351]
[1641217736766,0.8304862,47238.0,47236.0,0.12012181]
[1641217736967,0.8304862,47238.0,47236.0,0.19433683]
[1641217737167,0.76249211,47238.0,47236.0,0.19433683]
[1641217737369,0.76249211,47238.0,47236.0,0.18232513]
[1641217737570,0.76249211,47238.0,47237.0,0.43977581]
[1641217737767,0.76249211,47238.0,47237.0,0.46094482]
[1641217737967,0.76249211,47238.0,47237.0,3.51743476]
[1641217738167,0.76249211,47238.0,47237.0,3.51843476]
[1641217738368,1.42025045,47247.0,47237.0,3.53044559]
[1641217738668,0.14033567,47248.0,47237.0,3.52944559]
[1641217738869,0.14033567,47248.0,47238.0,0.12012181]
[1641217739268,0.32033567,47248.0,47238.0,0.12012181]
[1641217740079,0.14033567,47248.0,47238.0,0.12012181]
[1641217740280,0.18,47245.0,47238.0,0.12012181]
[1641217740881,0.18,47245.0,47238.0,0.21912181]
[1641217741583,0.18,47245.0,47239.0,0.12012181]
[1641217742983,1.48308045,47246.0,47239.0,0.21912181]
[1641217743186,0.13621166,47244.0,47239.0,0.099]
[1641217743587,0.13621166,47244.0,47240.0,0.12012181]